fUSD/lending_fUSD_20260503
["ID","MTS","AMOUNT","RATE_DAILY","PERIOD"]
[421474236,1777740643000,-500.0,0.00032328,2]
[421474237,1777740643000,-500.0,0.00032328,2]
[421474223,1777740643000,-500.0,0.00032328,2]
[421474218,1777740643000,-890.68,0.00032328,2]
[421474235,1777740643000,-500.0,0.00032328,2]
[421474205,1777740643000,-500.0,0.00032328,2]
[421474208,1777740643000,-500.0,0.00032328,2]
[421474174,1777740643000,-500.0,0.00032328,2]
[421474177,1777740643000,-500.0,0.00032328,2]
[421474180,1777740643000,-500.0,0.00032328,2]
[421474179,1777740643000,-500.0,0.00032328,2]
[421474184,1777740643000,-500.0,0.00032328,2]
[421474183,1777740643000,-500.0,0.00032328,2]
[421474194,1777740643000,-500.0,0.00032328,2]
[421474186,1777740643000,-1784.19,0.00032328,2]
[421474185,1777740643000,-500.0,0.00032328,2]
[421474192,1777740643000,-500.0,0.00032328,2]
[421474191,1777740643000,-753.25,0.00032328,2]
[421474189,1777740643000,-549.91,0.00032328,2]
[421474188,1777740643000,-500.0,0.00032328,2]
[421474181,1777740643000,-500.0,0.00032328,2]
[421474190,1777740643000,-500.0,0.00032328,2]
[421474187,1777740643000,-500.0,0.00032328,2]
[421474204,1777740643000,-848.48,0.00032328,2]
[421474201,1777740643000,-500.0,0.00032328,2]
[421474197,1777740643000,-500.0,0.00032328,2]
[421474200,1777740643000,-500.0,0.00032328,2]
[421474203,1777740643000,-500.0,0.00032328,2]
[421474199,1777740643000,-500.0,0.00032328,2]
[421474193,1777740643000,-500.0,0.00032328,2]
[421474206,1777740643000,-580.90423642,0.00032328,2]
[421474198,1777740643000,-500.0,0.00032328,2]
[421474195,1777740643000,-4974.81,0.00032328,2]
[421474202,1777740643000,-500.0,0.00032328,2]
[421474196,1777740643000,-500.0,0.00032328,2]
[421474265,1777740644000,-500.0,0.00032328,2]
[421474276,1777740644000,-545.09292137,0.00032328,2]
[421474263,1777740644000,-500.0,0.00032328,2]
[421474264,1777740644000,-500.0,0.00032328,2]
[421474267,1777740644000,-500.0,0.00032328,2]
[421474282,1777740644000,-500.0,0.00032328,2]
[421474283,1777740644000,-509.17,0.00032328,2]
[421474274,1777740644000,-517.11,0.00032328,2]
[421474280,1777740644000,-2730.79,0.00032328,2]
[421474287,1777740644000,-500.0,0.00032328,2]
[421474271,1777740644000,-500.0,0.00032328,2]
[421474272,1777740644000,-500.0,0.00032328,2]
[421474285,1777740644000,-500.0,0.00032328,2]
[421474273,1777740644000,-362.45714974,0.00032328,2]
[421474275,1777740644000,-556.57,0.00032328,2]
[421474277,1777740644000,-1045.22,0.00032328,2]
[421474281,1777740644000,-4289.29,0.00032328,2]
[421474293,1777740644000,-500.0,0.00032328,2]
[421474294,1777740644000,-500.0,0.00032328,2]
[421474295,1777740644000,-502.86859412,0.00032328,2]
[421474296,1777740644000,-500.0,0.00032328,2]
[421474284,1777740644000,-500.0,0.00032328,2]
[421474286,1777740644000,-500.0,0.00032328,2]
[421474268,1777740644000,-602.56,0.00032328,2]
[421474278,1777740644000,-500.0,0.00032328,2]
[421474261,1777740644000,-500.0,0.00032328,2]
[421474254,1777740644000,-500.0,0.00032328,2]
[421474260,1777740644000,-500.0,0.00032328,2]
[421474245,1777740644000,-500.0,0.00032328,2]
[421474244,1777740644000,-500.0,0.00032328,2]
[421474243,1777740644000,-500.0,0.00032328,2]
[421474242,1777740644000,-500.0,0.00032328,2]
[421474238,1777740644000,-500.0,0.00032328,2]
[421474239,1777740644000,-785.63,0.00032328,2]
[421474240,1777740644000,-500.0,0.00032328,2]
[421474241,1777740644000,-500.0,0.00032328,2]
[421474246,1777740644000,-500.0,0.00032328,2]
[421474248,1777740644000,-500.0,0.00032328,2]
[421474247,1777740644000,-742.17,0.00032328,2]
[421474258,1777740644000,-500.0,0.00032328,2]
[421474256,1777740644000,-500.0,0.00032328,2]
[421474253,1777740644000,-500.0,0.00032328,2]
[421474251,1777740644000,-602.76085934,0.00032328,2]
[421474250,1777740644000,-1058.93,0.00032328,2]
[421474257,1777740644000,-500.0,0.00032328,2]
[421474252,1777740644000,-500.0,0.00032328,2]
[421474255,1777740644000,-634.68284308,0.00032328,2]
[421474269,1777740644000,-500.0,0.00032328,2]
[421474270,1777740644000,-485.91352121,0.00032328,2]
[421474259,1777740644000,-500.0,0.00032328,2]
[421474266,1777740644000,-500.0,0.00032328,2]
[421474262,1777740644000,-500.0,0.00032328,2]
[421474249,1777740644000,-500.0,0.00032328,2]
[421474291,1777740644000,-500.0,0.00032328,2]
[421474279,1777740644000,-568.44,0.00032328,2]
[421474290,1777740644000,-500.0,0.00032328,2]
[421474327,1777740644000,-500.0,0.00032328,2]
[421474323,1777740644000,-500.0,0.00032328,2]
[421474333,1777740644000,-500.0,0.00032328,2]
[421474324,1777740644000,-500.0,0.00032328,2]
[421474332,1777740644000,-500.0,0.00032328,2]
[421474325,1777740644000,-500.0,0.00032328,2]
[421474328,1777740644000,-500.0,0.00032328,2]
[421474330,1777740644000,-746.13,0.00032328,2]
[421474329,1777740644000,-596.49,0.00032328,2]
[421474331,1777740644000,-568.62,0.00032328,2]
[421474338,1777740644000,-500.0,0.00032328,2]
[421474326,1777740644000,-500.0,0.00032328,2]
[421474334,1777740644000,-500.0,0.00032328,2]
[421474337,1777740644000,-500.0,0.00032328,2]
[421474336,1777740644000,-501.07,0.00032328,2]
[421474341,1777740644000,-500.0,0.00032328,2]
[421474345,1777740644000,-553.67,0.00032328,2]
[421474344,1777740644000,-500.0,0.00032328,2]
[421474340,1777740644000,-500.0,0.00032328,2]
[421474343,1777740644000,-500.0,0.00032328,2]
[421474339,1777740644000,-735.07,0.00032328,2]
[421474347,1777740644000,-3472.2,0.00032328,2]
[421474346,1777740644000,-724.98,0.00032328,2]
[421474288,1777740644000,-500.0,0.00032328,2]
[421474335,1777740644000,-25647.26,0.00032328,2]
[421474322,1777740644000,-500.0,0.00032328,2]
[421474342,1777740644000,-500.0,0.00032328,2]
[421474316,1777740644000,-563.67,0.00032328,2]
[421474321,1777740644000,-594.98790714,0.00032328,2]
[421474289,1777740644000,-764.49,0.00032328,2]
[421474292,1777740644000,-500.0,0.00032328,2]
[421474297,1777740644000,-500.0,0.00032328,2]
[421474298,1777740644000,-500.0,0.00032328,2]
[421474306,1777740644000,-500.0,0.00032328,2]
[421474305,1777740644000,-500.0,0.00032328,2]
[421474299,1777740644000,-500.0,0.00032328,2]
[421474301,1777740644000,-266.34023575,0.00032328,2]
[421474308,1777740644000,-568.25,0.00032328,2]
[421474300,1777740644000,-566.11,0.00032328,2]
[421474302,1777740644000,-692.22,0.00032328,2]
[421474304,1777740644000,-500.0,0.00032328,2]
[421474307,1777740644000,-500.0,0.00032328,2]
[421474303,1777740644000,-1494.83,0.00032328,2]
[421474317,1777740644000,-752.6,0.00032328,2]
[421474314,1777740644000,-691.06,0.00032328,2]
[421474318,1777740644000,-500.0,0.00032328,2]
[421474320,1777740644000,-550.63,0.00032328,2]
[421474313,1777740644000,-517.88,0.00032328,2]
[421474315,1777740644000,-9212.5,0.00032328,2]
[421474310,1777740644000,-500.0,0.00032328,2]
[421474312,1777740644000,-500.0,0.00032328,2]
[421474319,1777740644000,-500.0,0.00032328,2]
[421474311,1777740644000,-500.0,0.00032328,2]
[421474309,1777740644000,-500.0,0.00032328,2]
[421474388,1777740645000,-500.0,0.00032328,2]
[421474385,1777740645000,-500.0,0.00032328,2]
[421474387,1777740645000,-500.0,0.00032328,2]
[421474384,1777740645000,-500.0,0.00032328,2]
[421474389,1777740645000,-500.0,0.00032328,2]
[421474381,1777740645000,-500.0,0.00032328,2]
[421474392,1777740645000,-607.34,0.00032328,2]
[421474393,1777740645000,-500.0,0.00032328,2]
[421474382,1777740645000,-500.0,0.00032328,2]
[421474369,1777740645000,-500.0,0.00032328,2]
[421474391,1777740645000,-818.91,0.00032328,2]
[421474390,1777740645000,-500.0,0.00032328,2]
[421474383,1777740645000,-500.0,0.00032328,2]
[421474421,1777740645000,-807.96,0.00032328,2]
[421474394,1777740645000,-500.0,0.00032328,2]
[421474408,1777740645000,-692.94,0.00032328,2]
[421474401,1777740645000,-500.0,0.00032328,2]
[421474405,1777740645000,-500.0,0.00032328,2]
[421474400,1777740645000,-658.29,0.00032328,2]
[421474395,1777740645000,-500.0,0.00032328,2]
[421474411,1777740645000,-500.0,0.00032328,2]
[421474413,1777740645000,-500.0,0.00032328,2]
[421474417,1777740645000,-500.0,0.00032328,2]
[421474415,1777740645000,-500.0,0.00032328,2]
[421474418,1777740645000,-500.0,0.00032328,2]
[421474376,1777740645000,-500.0,0.00032328,2]
[421474386,1777740645000,-591.01818789,0.00032328,2]
[421474379,1777740645000,-500.0,0.00032328,2]
[421474351,1777740645000,-500.0,0.00032328,2]
[421474371,1777740645000,-500.0,0.00032328,2]
[421474349,1777740645000,-500.0,0.00032328,2]
[421474420,1777740645000,-500.0,0.00032328,2]
[421474353,1777740645000,-500.0,0.00032328,2]
[421474350,1777740645000,-547.54,0.00032328,2]
[421474348,1777740645000,-796.01,0.00032328,2]
[421474357,1777740645000,-500.0,0.00032328,2]
[421474352,1777740645000,-500.0,0.00032328,2]
[421474355,1777740645000,-500.0,0.00032328,2]
[421474354,1777740645000,-908.85,0.00032328,2]
[421474359,1777740645000,-500.0,0.00032328,2]
[421474358,1777740645000,-500.0,0.00032328,2]
[421474361,1777740645000,-500.0,0.00032328,2]
[421474362,1777740645000,-553.3,0.00032328,2]
[421474360,1777740645000,-500.0,0.00032328,2]
[421474364,1777740645000,-500.0,0.00032328,2]
[421474363,1777740645000,-500.0,0.00032328,2]
[421474367,1777740645000,-336.87487252,0.00032328,2]
[421474366,1777740645000,-728.98,0.00032328,2]
[421474368,1777740645000,-500.0,0.00032328,2]
[421474365,1777740645000,-2458.58,0.00032328,2]
[421474380,1777740645000,-500.0,0.00032328,2]
[421474370,1777740645000,-500.0,0.00032328,2]
[421474374,1777740645000,-500.0,0.00032328,2]
[421474377,1777740645000,-500.0,0.00032328,2]
[421474373,1777740645000,-500.0,0.00032328,2]
[421474372,1777740645000,-592.28,0.00032328,2]
[421474375,1777740645000,-500.0,0.00032328,2]
[421474378,1777740645000,-500.0,0.00032328,2]
[421474423,1777740645000,-500.0,0.00032328,2]
[421474356,1777740645000,-15155.74,0.00032328,2]
[421474435,1777740645000,-532.12,0.00032328,2]
[421474452,1777740645000,-500.0,0.00032328,2]
[421474448,1777740645000,-500.0,0.00032328,2]
[421474451,1777740645000,-500.0,0.00032328,2]
[421474461,1777740645000,-500.0,0.00032328,2]
[421474460,1777740645000,-803.51,0.00032328,2]
[421474466,1777740645000,-500.0,0.00032328,2]
[421474467,1777740645000,-451.42481177,0.00032328,2]
[421474464,1777740645000,-656.62,0.00032328,2]
[421474470,1777740645000,-500.0,0.00032328,2]
[421474471,1777740645000,-524.06437625,0.00032328,2]
[421474462,1777740645000,-500.0,0.00032328,2]
[421474472,1777740645000,-500.0,0.00032328,2]
[421474449,1777740645000,-500.0,0.00032328,2]
[421474468,1777740645000,-500.0,0.00032328,2]
[421474463,1777740645000,-719.82,0.00032328,2]
[421474469,1777740645000,-719.76,0.00032328,2]
[421474478,1777740645000,-500.0,0.00032328,2]
[421474479,1777740645000,-500.0,0.00032328,2]
[421474476,1777740645000,-724.38,0.00032328,2]
[421474473,1777740645000,-500.0,0.00032328,2]
[421474474,1777740645000,-534.99,0.00032328,2]
[421474475,1777740645000,-500.0,0.00032328,2]
[421474483,1777740645000,-500.0,0.00032328,2]
[421474480,1777740645000,-1529.27,0.00032328,2]
[421474481,1777740645000,-2332.95,0.00032328,2]
[421474477,1777740645000,-500.0,0.00032328,2]
[421474465,1777740645000,-500.0,0.00032328,2]
[421474454,1777740645000,-922.85,0.00032328,2]
[421474482,1777740645000,-500.0,0.00032328,2]
[421474450,1777740645000,-500.0,0.00032328,2]
[421474456,1777740645000,-500.0,0.00032328,2]
[421474433,1777740645000,-500.0,0.00032328,2]
[421474430,1777740645000,-500.0,0.00032328,2]
[421474428,1777740645000,-500.0,0.00032328,2]
[421474431,1777740645000,-500.0,0.00032328,2]
[421474427,1777740645000,-683.92,0.00032328,2]
[421474425,1777740645000,-1318.58,0.00032328,2]
[421474434,1777740645000,-500.0,0.00032328,2]
[421474426,1777740645000,-500.0,0.00032328,2]
[421474436,1777740645000,-500.0,0.00032328,2]
[421474432,1777740645000,-500.0,0.00032328,2]
[421474429,1777740645000,-500.0,0.00032328,2]
[421474438,1777740645000,-500.0,0.00032328,2]
[421474439,1777740645000,-718.35,0.00032328,2]
[421474424,1777740645000,-1905.16,0.00032328,2]
[421474440,1777740645000,-500.0,0.00032328,2]
[421474437,1777740645000,-465.09133638,0.00032328,2]
[421474457,1777740645000,-500.0,0.00032328,2]
[421474453,1777740645000,-579.77,0.00032328,2]
[421474458,1777740645000,-500.0,0.00032328,2]
[421474455,1777740645000,-2406.39,0.00032328,2]
[421474445,1777740645000,-500.0,0.00032328,2]
[421474459,1777740645000,-500.0,0.00032328,2]
[421474446,1777740645000,-500.0,0.00032328,2]
[421474442,1777740645000,-634.41,0.00032328,2]
[421474444,1777740645000,-500.0,0.00032328,2]
[421474447,1777740645000,-500.0,0.00032328,2]
[421474443,1777740645000,-500.0,0.00032328,2]
[421474441,1777740645000,-500.0,0.00032328,2]
[421474531,1777740646000,-500.0,0.00032383,2]
[421474532,1777740646000,-324.8044311,0.00032383,2]
[421474529,1777740646000,-500.0,0.00032383,2]
[421474530,1777740646000,-500.0,0.00032383,2]
[421474520,1777740646000,-669.79779163,0.00032382,10]
[421474526,1777740646000,-500.0,0.00032383,2]
[421474521,1777740646000,-300.0,0.00032382,10]
[421474518,1777740646000,-500.0,0.00032382,10]
[421474516,1777740646000,-300.0,0.00032382,10]
[421474528,1777740646000,-500.0,0.00032383,2]
[421474534,1777740646000,-500.0,0.00032383,2]
[421474539,1777740646000,-500.0,0.00032383,2]
[421474535,1777740646000,-500.0,0.00032383,2]
[421474527,1777740646000,-500.0,0.00032383,2]
[421474537,1777740646000,-497.46966558,0.00032383,2]
[421474536,1777740646000,-500.0,0.00032383,2]
[421474514,1777740646000,-500.0,0.00032382,2]
[421474541,1777740646000,-500.0,0.00032383,2]
[421474540,1777740646000,-500.0,0.00032383,2]
[421474542,1777740646000,-500.0,0.00032383,2]
[421474544,1777740646000,-4515.4006279,0.00032383,2]
[421474545,1777740646000,-500.0,0.00032383,2]
[421474538,1777740646000,-500.0,0.00032383,2]
[421474546,1777740646000,-500.0,0.00032383,2]
[421474533,1777740646000,-500.0,0.00032383,2]
[421474513,1777740646000,-500.0,0.00032382,2]
[421474499,1777740646000,-500.0,0.00032328,2]
[421474525,1777740646000,-500.0,0.00032383,30]
[421474543,1777740646000,-500.0,0.00032383,2]
[421474485,1777740646000,-637.14,0.00032328,2]
[421474486,1777740646000,-341.09082663,0.00032328,2]
[421474489,1777740646000,-500.0,0.00032328,2]
[421474490,1777740646000,-568.51,0.00032328,2]
[421474497,1777740646000,-500.0,0.00032328,2]
[421474487,1777740646000,-500.0,0.00032328,2]
[421474491,1777740646000,-506.66,0.00032328,2]
[421474484,1777740646000,-500.0,0.00032328,2]
[421474495,1777740646000,-500.0,0.00032328,2]
[421474488,1777740646000,-500.0,0.00032328,2]
[421474493,1777740646000,-500.0,0.00032328,2]
[421474503,1777740646000,-161.27,0.00032329,2]
[421474501,1777740646000,-500.0,0.00032328,2]
[421474507,1777740646000,-529.7649574,0.00032338,2]
[421474504,1777740646000,-161.26,0.00032329,2]
[421474510,1777740646000,-151.0,0.0003238,7]
[421474505,1777740646000,-207.75,0.00032329,2]
[421474502,1777740646000,-161.27,0.00032329,2]
[421474508,1777740646000,-260.72729886,0.00032373,2]
[421474506,1777740646000,-1368.9152011,0.00032336,2]
[421474512,1777740646000,-500.0,0.00032382,2]
[421474522,1777740646000,-152.0,0.00032383,5]
[421474511,1777740646000,-258.90985623,0.00032382,2]
[421474524,1777740646000,-275.81706367,0.00032383,2]
[421474523,1777740646000,-150.0,0.00032383,2]
[421474509,1777740646000,-151.0,0.0003238,7]
[421474548,1777740646000,-172.38856691,0.00032383,2]
[421474552,1777740646000,-500.0,0.00032383,2]
[421474606,1777740646000,-751.13,0.00032383,2]
[421474612,1777740646000,-500.0,0.00032383,2]
[421474619,1777740646000,-500.0,0.00032383,2]
[421474626,1777740646000,-500.0,0.00032383,2]
[421474623,1777740646000,-500.0,0.00032383,2]
[421474608,1777740646000,-500.0,0.00032383,2]
[421474615,1777740646000,-500.0,0.00032383,2]
[421474621,1777740646000,-500.0,0.00032383,2]
[421474630,1777740646000,-500.0,0.00032383,2]
[421474628,1777740646000,-661.95,0.00032383,2]
[421474617,1777740646000,-500.0,0.00032383,2]
[421474604,1777740646000,-500.0,0.00032383,2]
[421474639,1777740646000,-500.0,0.00032383,2]
[421474646,1777740646000,-500.0,0.00032383,2]
[421474642,1777740646000,-500.0,0.00032383,2]
[421474632,1777740646000,-500.0,0.00032383,2]
[421474652,1777740646000,-558.92,0.00032383,2]
[421474654,1777740646000,-500.0,0.00032383,2]
[421474645,1777740646000,-500.0,0.00032383,2]
[421474635,1777740646000,-500.0,0.00032383,2]
[421474637,1777740646000,-500.0,0.00032383,2]
[421474649,1777740646000,-500.0,0.00032383,2]
[421474641,1777740646000,-500.0,0.00032383,2]
[421474547,1777740646000,-500.0,0.00032383,2]
[421474650,1777740646000,-500.0,0.00032383,2]
[421474599,1777740646000,-500.0,0.00032383,2]
[421474610,1777740646000,-500.0,0.00032383,2]
[421474590,1777740646000,-500.0,0.00032383,2]
[421474551,1777740646000,-500.0,0.00032383,2]
[421474583,1777740646000,-500.0,0.00032383,2]
[421474553,1777740646000,-500.0,0.00032383,2]
[421474550,1777740646000,-500.0,0.00032383,2]
[421474554,1777740646000,-500.0,0.00032383,2]
[421474555,1777740646000,-500.0,0.00032383,2]
[421474549,1777740646000,-200.0,0.00032383,2]
[421474556,1777740646000,-500.0,0.00032383,2]
[421474577,1777740646000,-500.0,0.00032383,2]
[421474566,1777740646000,-500.0,0.00032383,2]
[421474560,1777740646000,-1152.06,0.00032383,2]
[421474572,1777740646000,-288.19971131,0.00032383,2]
[421474562,1777740646000,-500.0,0.00032383,2]
[421474558,1777740646000,-500.0,0.00032383,2]
[421474581,1777740646000,-595.24,0.00032383,2]
[421474588,1777740646000,-500.0,0.00032383,2]
[421474592,1777740646000,-500.0,0.00032383,2]
[421474595,1777740646000,-500.0,0.00032383,2]
[421474597,1777740646000,-653.64,0.00032383,2]
[421474586,1777740646000,-338.3321884,0.00032383,2]
[421474601,1777740646000,-500.0,0.00032383,2]
[421474568,1777740646000,-500.0,0.00032383,2]
[421474564,1777740646000,-500.0,0.00032383,2]
[421474570,1777740646000,-533.47,0.00032383,2]
[421474574,1777740646000,-500.0,0.00032383,2]
[421474579,1777740646000,-504.21,0.00032383,2]
[421474717,1777740647000,-500.0,0.00032383,2]
[421474722,1777740647000,-500.0,0.00032383,2]
[421474720,1777740647000,-531.92,0.00032383,2]
[421474715,1777740647000,-500.0,0.00032383,2]
[421474725,1777740647000,-500.0,0.00032383,2]
[421474706,1777740647000,-500.0,0.00032383,2]
[421474707,1777740647000,-500.0,0.00032383,2]
[421474704,1777740647000,-500.0,0.00032383,2]
[421474709,1777740647000,-500.0,0.00032383,2]
[421474711,1777740647000,-500.0,0.00032383,2]
[421474718,1777740647000,-500.0,0.00032383,2]
[421474712,1777740647000,-500.0,0.00032383,2]
[421474716,1777740647000,-500.0,0.00032383,2]
[421474732,1777740647000,-500.0,0.00032383,2]
[421474719,1777740647000,-500.0,0.00032383,2]
[421474723,1777740647000,-500.0,0.00032383,2]
[421474724,1777740647000,-1160.62,0.00032383,2]
[421474721,1777740647000,-500.0,0.00032383,2]
[421474728,1777740647000,-500.0,0.00032383,2]
[421474727,1777740647000,-714.19,0.00032383,2]
[421474733,1777740647000,-438.56551743,0.00032383,2]
[421474734,1777740647000,-494.18344913,0.00032383,2]
[421474729,1777740647000,-500.0,0.00032383,2]
[421474730,1777740647000,-500.0,0.00032383,2]
[421474736,1777740647000,-563.44,0.00032383,2]
[421474710,1777740647000,-500.0,0.00032383,2]
[421474726,1777740647000,-500.0,0.00032383,2]
[421474708,1777740647000,-500.0,0.00032383,2]
[421474661,1777740647000,-500.0,0.00032383,2]
[421474702,1777740647000,-500.0,0.00032383,2]
[421474656,1777740647000,-608.3,0.00032383,2]
[421474663,1777740647000,-500.0,0.00032383,2]
[421474681,1777740647000,-500.0,0.00032383,2]
[421474658,1777740647000,-729.45,0.00032383,2]
[421474677,1777740647000,-554.24,0.00032383,2]
[421474669,1777740647000,-500.0,0.00032383,2]
[421474671,1777740647000,-778.94,0.00032383,2]
[421474679,1777740647000,-176.59003847,0.00032383,2]
[421474675,1777740647000,-500.0,0.00032383,2]
[421474667,1777740647000,-500.0,0.00032383,2]
[421474665,1777740647000,-500.0,0.00032383,2]
[421474673,1777740647000,-500.0,0.00032383,2]
[421474699,1777740647000,-638.93,0.00032383,2]
[421474692,1777740647000,-500.0,0.00032383,2]
[421474683,1777740647000,-500.0,0.00032383,2]
[421474690,1777740647000,-1945.3,0.00032383,2]
[421474698,1777740647000,-503.61,0.00032383,2]
[421474696,1777740647000,-500.0,0.00032383,2]
[421474685,1777740647000,-500.0,0.00032383,2]
[421474688,1777740647000,-500.0,0.00032383,2]
[421474694,1777740647000,-500.0,0.00032383,2]
[421474701,1777740647000,-667.69,0.00032383,2]
[421474700,1777740647000,-500.0,0.00032383,2]
[421474697,1777740647000,-500.0,0.00032383,2]
[421474713,1777740647000,-500.0,0.00032383,2]
[421474703,1777740647000,-500.0,0.00032383,2]
[421474714,1777740647000,-500.0,0.00032383,2]
[421474705,1777740647000,-500.0,0.00032383,2]
[421474737,1777740647000,-500.0,0.00032383,2]
[421474731,1777740647000,-1049.35,0.00032383,2]
[421474743,1777740647000,-500.0,0.00032383,2]
[421474771,1777740647000,-500.0,0.00032383,2]
[421474769,1777740647000,-500.0,0.00032383,2]
[421474767,1777740647000,-500.0,0.00032383,2]
[421474774,1777740647000,-500.0,0.00032383,2]
[421474784,1777740647000,-765.21,0.00032383,2]
[421474785,1777740647000,-500.0,0.00032383,2]
[421474781,1777740647000,-517.58,0.00032383,2]
[421474775,1777740647000,-500.0,0.00032383,2]
[421474773,1777740647000,-618.93,0.00032383,2]
[421474779,1777740647000,-3131.23,0.00032383,2]
[421474778,1777740647000,-500.0,0.00032383,2]
[421474782,1777740647000,-500.0,0.00032383,2]
[421474776,1777740647000,-500.0,0.00032383,2]
[421474780,1777740647000,-500.0,0.00032383,2]
[421474783,1777740647000,-500.0,0.00032383,2]
[421474777,1777740647000,-500.0,0.00032383,2]
[421474787,1777740647000,-500.0,0.00032383,2]
[421474789,1777740647000,-500.0,0.00032383,2]
[421474791,1777740647000,-500.0,0.00032383,2]
[421474786,1777740647000,-500.0,0.00032383,2]
[421474788,1777740647000,-500.0,0.00032383,2]
[421474790,1777740647000,-500.0,0.00032383,2]
[421474794,1777740647000,-500.0,0.00032383,2]
[421474793,1777740647000,-500.0,0.00032383,2]
[421474792,1777740647000,-500.0,0.00032383,2]
[421474795,1777740647000,-500.0,0.00032383,2]
[421474735,1777740647000,-500.0,0.00032383,2]
[421474770,1777740647000,-500.0,0.00032383,2]
[421474760,1777740647000,-500.0,0.00032383,2]
[421474796,1777740647000,-572.23,0.00032383,2]
[421474768,1777740647000,-1058.89,0.00032383,2]
[421474764,1777740647000,-500.0,0.00032383,2]
[421474740,1777740647000,-500.0,0.00032383,2]
[421474741,1777740647000,-500.0,0.00032383,2]
[421474738,1777740647000,-500.0,0.00032383,2]
[421474742,1777740647000,-500.0,0.00032383,2]
[421474744,1777740647000,-606.54,0.00032383,2]
[421474756,1777740647000,-500.0,0.00032383,2]
[421474748,1777740647000,-500.0,0.00032383,2]
[421474745,1777740647000,-500.0,0.00032383,2]
[421474746,1777740647000,-500.0,0.00032383,2]
[421474757,1777740647000,-500.0,0.00032383,2]
[421474758,1777740647000,-440.25475833,0.00032383,2]
[421474751,1777740647000,-500.0,0.00032383,2]
[421474739,1777740647000,-682.27,0.00032383,2]
[421474754,1777740647000,-748.06,0.00032383,2]
[421474753,1777740647000,-500.0,0.00032383,2]
[421474772,1777740647000,-500.0,0.00032383,2]
[421474765,1777740647000,-500.0,0.00032383,2]
[421474761,1777740647000,-542.32,0.00032383,2]
[421474763,1777740647000,-500.0,0.00032383,2]
[421474759,1777740647000,-565.92,0.00032383,2]
[421474766,1777740647000,-500.0,0.00032383,2]
[421474755,1777740647000,-500.0,0.00032383,2]
[421474749,1777740647000,-706.67,0.00032383,2]
[421474752,1777740647000,-500.0,0.00032383,2]
[421474747,1777740647000,-560.36,0.00032383,2]
[421474750,1777740647000,-507.81,0.00032383,2]
[421474762,1777740647000,-500.0,0.00032383,2]
[421474827,1777740648000,-500.0,0.00032383,2]
[421474836,1777740648000,-158.56902622,0.00032383,2]
[421474826,1777740648000,-977.68,0.00032383,2]
[421474830,1777740648000,-577.58,0.00032383,2]